[Event "-chT Youth Countries 2019"]
[Site "Wuerzburg"]
[Date "2019.10.04"]
[Round "5.1"]
[White "Degenhard, Simon"]
[Black "Tiarks, Jann-Christian"]
[Result "1/2-1/2"]
[ECO "B01"]
[WhiteElo "2084"]
[BlackElo "2178"]
[Annotator "NA"]
[PlyCount "43"]
[EventDate "2019.10.02"]
[EventType "team-tourn"]
[EventRounds "7"]
[EventCountry "GER"]
[SourceTitle "playchess.com"]
[Source "ChessBase"]
[SourceQuality "1"]
[WhiteTeam "Württemberg"]
[BlackTeam "Brandenburg/Berlin"]
[TimeControl "40/5400+30:1800+30"]

1. e4 {[%emt 0:00:00]} c6 {[%emt 0:00:00]} 2. c4 {[%emt 0:00:09]} d5 {[%emt 0:02:09]} 3. exd5 {[%emt 0:00:06]} Nf6 {[%emt 0:00:05]} 4. Nc3 {[%emt 0:00:25]} cxd5 {[%emt 0:01:58]} 5. cxd5 {[%emt 0:00:11]} Nxd5 {[%emt 0:00:09]} 6. Nf3 {[%emt 0:00:11]} e6 {[%emt 0:00:37]} 7. d4 {[%emt 0:00:14]} Be7 {[%emt 0:00:43]} 8. Bd3 {[%emt 0:00:24]} Nc6 {[%emt 0:00:27]} 9. a3 {[%emt 0:00:18]} O-O {[%emt 0:02:21]} 10. O-O {[%emt 0:06:46]} Nxc3 {[%emt 0:08:42]} 11. bxc3 {[%emt 0:00:11]} b6 {[%emt 0:00:05]} 12. Qe2 {[%emt 0:05:15]} Bb7 {[%emt 0:01:13]} 13. Re1 {[%emt 0:04:18]} Rc8 {[%emt 0:02:16]} 14. Qe4 {[%emt 0:15:21]} g6 {[%emt 0:01:09]} 15. Bh6 {[%emt 0:00:25]} Re8 {[%emt 0:00:28]} 16. Qe3 {[%emt 0:03:08]} Bf6 {[%emt 0:05:40]} 17. Qf4 {[%emt 0:07:36]} Bg7 {[%emt 0:03:41]} 18. Bxg7 {[%emt 0:03:06]} Kxg7 {[%emt 0:00:06]} 19. Ng5 {[%emt 0:03:48]} Qc7 {[%emt 0:02:25]} 20. Qh4 {[%emt 0:08:56]} h6 {[%emt 0:02:04]} 21. Ne4 {[%emt 0:00:30]} Ne7 {[%emt 0:03:47]} 22. Nf6 {[%emt 0:07:32] normal} 1/2-1/2

[Event "-chT Youth Countries 2019"]
[Site "Wuerzburg"]
[Date "2019.10.04"]
[Round "5.2"]
[White "Schmidek, Emil"]
[Black "Niermann, Tristan"]
[Result "1-0"]
[ECO "C77"]
[WhiteElo "2387"]
[BlackElo "2227"]
[Annotator "NA"]
[PlyCount "113"]
[EventDate "2019.10.02"]
[EventType "team-tourn"]
[EventRounds "7"]
[EventCountry "GER"]
[SourceTitle "playchess.com"]
[Source "ChessBase"]
[SourceQuality "1"]
[WhiteTeam "SF Berlin"]
[BlackTeam "Nordrhein-Westfalen"]
[TimeControl "40/5400+30:1800+30"]

1. e4 {[%emt 0:00:00]} e5 {[%emt 0:00:00]} 2. Nf3 {[%emt 0:00:00]} Nc6 {[%emt 0:00:00]} 3. Bb5 {[%emt 0:00:00]} a6 {[%emt 0:00:00]} 4. Ba4 {[%emt 0:00:00]} Nf6 {[%emt 0:00:00]} 5. d3 {[%emt 0:00:00]} d6 {[%emt 0:00:00]} 6. c3 {[%emt 0:01:57]} g6 {[%emt 0:00:14]} 7. d4 {[%emt 0:04:05]} exd4 {[%emt 0:06:03]} 8. cxd4 {[%emt 0:02:43]} Bg7 {[%emt 0:05:52]} 9. O-O {[%emt 0:23:56]} O-O {[%emt 0:00:50]} 10. Bxc6 {[%emt 0:04:04]} bxc6 {[%emt 0:00:07]} 11. Qc2 {[%emt 0:03:16]} Re8 {[%emt 0:16:54]} 12. e5 {[%emt 0:14:53]} Bf5 {[%emt 0:06:55]} 13. Qxc6 {[%emt 0:08:14]} Be4 {[%emt 0:04:44]} 14. Qa4 {[%emt 0:00:48]} Ng4 {[%emt 0:06:06]} 15. Ng5 {[%emt 0:10:23]} Bxb1 {[%emt 0:09:27]} 16. Rxb1 {[%emt 0:00:37]} dxe5 {[%emt 0:06:40]} 17. h3 {[%emt 0:01:07]} Nf6 {[%emt 0:04:20]} 18. dxe5 {[%emt 0:01:11]} Rxe5 {[%emt 0:01:32]} 19. Bf4 {[%emt 0:07:59]} Rd5 {[%emt 0:06:12]} 20. Rbd1 {[%emt 0:06:07]} Rb8 {[%emt 0:07:18]} 21. Be5 {[%emt 0:01:16]} Qe8 {[%emt 0:05:53]} 22. Qxe8+ {[%emt 0:01:32]} Rxe8 {[%emt 0:01:14]} 23. Rxd5 {[%emt 0:00:20]} Nxd5 {[%emt 0:00:06]} 24. Bxg7 {[%emt 0:00:04]} Kxg7 {[%emt 0:00:04]} 25. Rd1 {[%emt 0:00:49]} c6 {[%emt 0:01:17]} 26. Kf1 {[%emt 0:00:33]} Rb8 {[%emt 0:02:48]} 27. Rd2 {[%emt 0:01:19]} Rb5 {[%emt 0:01:39]} 28. Nf3 {[%emt 0:02:00]} Rc5 {[%emt 0:01:07]} 29. g3 {[%emt 0:00:50]} Kf6 {[%emt 0:01:53]} 30. Ke2 {[%emt 0:01:10]} a5 {[%emt 0:01:22]} 31. Nd4 {[%emt 0:02:03]} Ke5 {[%emt 0:02:15]} 32. Nf3+ {[%emt 0:01:09]} Kf6 {[%emt 0:00:10]} 33. Ne1 {[%emt 0:00:29]} Nb4 {[%emt 0:01:30]} 34. a3 {[%emt 0:00:20]} Nd5 {[%emt 0:01:36]} 35. Rc2 {[%emt 0:01:44]} Rxc2+ {[%emt 0:00:34]} 36. Nxc2 {[%emt 0:00:01]} Ke5 {[%emt 0:00:22]} 37. Kd3 {[%emt 0:00:06]} Nb6 {[%emt 0:00:42]} 38. Ne3 {[%emt 0:00:14]} Na4 {[%emt 0:00:36]} 39. f4+ {[%emt 0:01:38]} Kd6 {[%emt 0:00:22]} 40. Nc4+ {[%emt 0:00:27]} Kd5 {[%emt 0:00:38]} 41. b4 {[%emt 0:04:44]} axb4 {[%emt 0:04:05]} 42. axb4 {[%emt 0:00:01]} f5 {[%emt 0:12:58]} 43. h4 {[%emt 0:06:07]} h5 {[%emt 0:00:18]} 44. Ne5 {[%emt 0:04:59]} Nb2+ {[%emt 0:06:59]} 45. Ke2 {[%emt 0:07:02]} c5 {[%emt 0:02:14]} 46. b5 {[%emt 0:00:32]} c4 {[%emt 0:03:01]} 47. b6 {[%emt 0:03:46]} Kd6 {[%emt 0:00:03]} 48. Kd2 {[%emt 0:04:42]} c3+ {[%emt 0:01:38]} 49. Kc2 {[%emt 0:00:01]} Na4 {[%emt 0:02:00]} 50. b7 {[%emt 0:00:08]} Kc7 {[%emt 0:00:04]} 51. Nxg6 {[%emt 0:00:08]} Kxb7 {[%emt 0:00:06]} 52. Ne7 {[%emt 0:00:24]} Kb6 {[%emt 0:00:49]} 53. Nxf5 {[%emt 0:00:11]} Kb5 {[%emt 0:00:34]} 54. g4 {[%emt 0:00:55]} hxg4 {[%emt 0:02:03]} 55. h5 {[%emt 0:00:11]} Nc5 {[%emt 0:00:23]} 56. h6 {[%emt 0:00:12]} g3 {[%emt 0:00:12]} 57. Nxg3 {[%emt 0:00:06] normal} 1-0

[Event "-chT Youth Countries 2019"]
[Site "Wuerzburg"]
[Date "2019.10.04"]
[Round "5.2"]
[White "Maetzkow, Maximilian Paul"]
[Black "Koelle, Tobias"]
[Result "1/2-1/2"]
[ECO "D05"]
[WhiteElo "2287"]
[BlackElo "2281"]
[Annotator "NA"]
[PlyCount "131"]
[EventDate "2019.10.02"]
[EventType "team-tourn"]
[EventRounds "7"]
[EventCountry "GER"]
[SourceTitle "playchess.com"]
[Source "ChessBase"]
[SourceQuality "1"]
[WhiteTeam "Brandenburg/Berlin"]
[BlackTeam "Württemberg"]
[TimeControl "40/5400+30:1800+30"]

1. d4 {[%emt 0:00:00]} Nf6 {[%emt 0:00:00]} 2. Nf3 {[%emt 0:00:00]} d5 {[%emt 0:00:00]} 3. e3 {[%emt 0:01:58]} e6 {[%emt 0:00:48]} 4. Bd3 {[%emt 0:00:24]} b6 {[%emt 0:00:54]} 5. b3 {[%emt 0:00:07]} Bb7 {[%emt 0:00:09]} 6. Bb2 {[%emt 0:00:09]} g6 {[%emt 0:00:57]} 7. O-O {[%emt 0:00:20]} Bg7 {[%emt 0:00:06]} 8. Nbd2 {[%emt 0:00:20]} O-O {[%emt 0:00:08]} 9. Ne5 {[%emt 0:01:41]} Nbd7 {[%emt 0:01:06]} 10. Ndf3 {[%emt 0:02:37]} Rc8 {[%emt 0:05:29]} 11. c4 {[%emt 0:07:55]} c5 {[%emt 0:04:52]} 12. Qe2 {[%emt 0:00:56]} Rc7 {[%emt 0:14:45]} 13. Rac1 {[%emt 0:05:18]} Qa8 {[%emt 0:02:46]} 14. cxd5 {[%emt 0:04:06]} Nxe5 {[%emt 0:10:21]} 15. Nxe5 {[%emt 0:07:44]} Bxd5 {[%emt 0:00:40]} 16. f3 {[%emt 0:03:38]} Rfc8 {[%emt 0:01:59]} 17. Ba6 {[%emt 0:03:11]} Bb7 {[%emt 0:00:50]} 18. Bxb7 {[%emt 0:00:20]} Qxb7 {[%emt 0:00:13]} 19. Nc4 {[%emt 0:00:46]} Qa6 {[%emt 0:07:45]} 20. dxc5 {[%emt 0:01:03]} Rxc5 {[%emt 0:00:31]} 21. Bd4 {[%emt 0:01:05]} R5c7 {[%emt 0:03:10]} 22. Qb2 {[%emt 0:00:53]} b5 {[%emt 0:08:25]} 23. Bxf6 {[%emt 0:01:16]} Bxf6 {[%emt 0:00:11]} 24. Qxf6 {[%emt 0:00:09]} bxc4 {[%emt 0:00:07]} 25. Rfd1 {[%emt 0:00:53]} Rf8 {[%emt 0:00:51]} 26. Rd8 {[%emt 0:04:50]} Rc8 {[%emt 0:00:32]} 27. Rxf8+ {[%emt 0:00:56]} Rxf8 {[%emt 0:02:39]} 28. bxc4 {[%emt 0:02:12]} Qxa2 {[%emt 0:00:13]} 29. h4 {[%emt 0:03:57]} h5 {[%emt 0:04:20]} 30. c5 {[%emt 0:01:44]} Qe2 {[%emt 0:03:33]} 31. Qc3 {[%emt 0:01:29]} Rd8 {[%emt 0:01:51]} 32. Re1 {[%emt 0:00:42]} Qd2 {[%emt 0:04:21]} 33. Qxd2 {[%emt 0:00:50]} Rxd2 {[%emt 0:00:06]} 34. Rc1 {[%emt 0:00:17]} Kf8 {[%emt 0:01:09]} 35. e4 {[%emt 0:00:59]} Ke7 {[%emt 0:02:30]} 36. Ra1 {[%emt 0:00:21]} Rd7 {[%emt 0:00:18]} 37. Kf2 {[%emt 0:00:05]} Rc7 {[%emt 0:00:59]} 38. Ra5 {[%emt 0:00:20]} e5 {[%emt 0:04:05]} 39. Ke3 {[%emt 0:00:28]} Rd7 {[%emt 0:00:20]} 40. g4 {[%emt 0:00:37]} f6 {[%emt 0:02:26]} 41. gxh5 {[%emt 0:30:47]} gxh5 {[%emt 0:30:01]} 42. f4 {[%emt 0:01:59]} Rc7 {[%emt 0:01:25]} 43. fxe5 {[%emt 0:06:30]} fxe5 {[%emt 0:00:04]} 44. Kd3 {[%emt 0:00:15]} Rd7+ {[%emt 0:00:50]} 45. Kc3 {[%emt 0:00:31]} Kd8 {[%emt 0:12:25]} 46. c6 {[%emt 0:02:10]} Rd6 {[%emt 0:00:00]} 47. Rxe5 {[%emt 0:00:00]} Rxc6+ {[%emt 0:00:00]} 48. Kd4 {[%emt 0:00:00]} Rh6 {[%emt 0:00:00]} 49. Ra5 {[%emt 0:00:00]} a6 {[%emt 0:00:00]} 50. Ke5 {[%emt 0:00:00]} Rg6 {[%emt 0:00:00]} 51. Kd4 {[%emt 0:00:00]} Rh6 {[%emt 0:00:00]} 52. Ke3 {[%emt 0:00:00]} Kc7 {[%emt 0:00:00]} 53. Kf4 {[%emt 0:00:00]} Kb6 {[%emt 0:00:00]} 54. Ra1 {[%emt 0:00:00]} Rg6 {[%emt 0:00:00]} 55. Kf5 {[%emt 0:00:00]} Rg4 {[%emt 0:00:00]} 56. Rh1 {[%emt 0:00:00]} Kc7 {[%emt 0:00:00]} 57. e5 {[%emt 0:00:00]} Kd7 {[%emt 0:00:00]} 58. Ra1 {[%emt 0:00:00]} Rxh4 {[%emt 0:00:00]} 59. Rxa6 {[%emt 0:00:00]} Rh1 {[%emt 0:00:00]} 60. Ra7+ {[%emt 0:00:00]} Ke8 {[%emt 0:00:00]} 61. Ke6 {[%emt 0:00:00]} Kf8 {[%emt 0:00:00]} 62. Ra8+ {[%emt 0:00:00]} Kg7 {[%emt 0:00:00]} 63. Ke7 {[%emt 0:00:00]} h4 {[%emt 0:00:00]} 64. e6 {[%emt 0:00:00]} h3 {[%emt 0:00:00]} 65. Ra3 {[%emt 0:00:00]} Kg6 {[%emt 0:01:30]} 66. Ke8 {[%emt 0:00:00] normal} 1/2-1/2

[Event "-chT Youth Countries 2019"]
[Site "Wuerzburg"]
[Date "2019.10.04"]
[Round "5.2"]
[White "Schmider, Niklas"]
[Black "Krastev, Alexander"]
[Result "1-0"]
[ECO "C84"]
[WhiteElo "2261"]
[BlackElo "2343"]
[Annotator "NA"]
[PlyCount "207"]
[EventDate "2019.10.02"]
[EventType "team-tourn"]
[EventRounds "7"]
[EventCountry "GER"]
[SourceTitle "playchess.com"]
[Source "ChessBase"]
[SourceQuality "1"]
[WhiteTeam "Baden 1"]
[BlackTeam "Hessen"]
[TimeControl "40/5400+30:1800+30"]

1. e4 {[%emt 0:00:00]} e5 {[%emt 0:00:35]} 2. Nf3 {[%emt 0:00:00]} Nc6 {[%emt 0:00:03]} 3. Bb5 {[%emt 0:00:12]} a6 {[%emt 0:00:05]} 4. Ba4 {[%emt 0:00:09]} Nf6 {[%emt 0:00:15]} 5. O-O {[%emt 0:00:12]} Be7 {[%emt 0:00:03]} 6. d3 {[%emt 0:00:14]} b5 {[%emt 0:00:12]} 7. Bb3 {[%emt 0:00:09]} d6 {[%emt 0:00:11]} 8. a3 {[%emt 0:00:10]} O-O {[%emt 0:00:13]} 9. Nc3 {[%emt 0:00:07]} Na5 {[%emt 0:05:55]} 10. Ba2 {[%emt 0:00:36]} c5 {[%emt 0:00:04]} 11. Nd5 {[%emt 0:00:56]} Nc6 {[%emt 0:09:43]} 12. b4 {[%emt 0:05:36]} Bb7 {[%emt 0:10:56]} 13. Be3 {[%emt 0:06:03]} Nxd5 {[%emt 0:06:36]} 14. Bxd5 {[%emt 0:01:32]} Qc7 {[%emt 0:01:08]} 15. c3 {[%emt 0:02:25]} Nd8 {[%emt 0:06:14]} 16. Bxb7 {[%emt 0:02:38]} Nxb7 {[%emt 0:00:15]} 17. Qb3 {[%emt 0:03:47]} Rfc8 {[%emt 0:02:33]} 18. Rfc1 {[%emt 0:07:56]} c4 {[%emt 0:08:22]} 19. dxc4 {[%emt 0:02:06]} Qxc4 {[%emt 0:00:09]} 20. Qxc4 {[%emt 0:00:45]} Rxc4 {[%emt 0:00:05]} 21. a4 {[%emt 0:09:18]} Rcc8 {[%emt 0:05:33]} 22. Kf1 {[%emt 0:17:07]} f6 {[%emt 0:02:11]} 23. Nd2 {[%emt 0:16:00]} Nd8 {[%emt 0:15:19]} 24. Ra3 {[%emt 0:04:03]} Kf7 {[%emt 0:04:58]} 25. Ke2 {[%emt 0:02:51]} Ke6 {[%emt 0:05:22]} 26. Rca1 {[%emt 0:01:54]} Rab8 {[%emt 0:00:44]} 27. axb5 {[%emt 0:02:20]} axb5 {[%emt 0:00:10]} 28. Kd3 {[%emt 0:01:37]} Nc6 {[%emt 0:02:31]} 29. Ra6 {[%emt 0:04:31]} Bd8 {[%emt 0:00:44]} 30. Nb3 {[%emt 0:01:05]} Kd7 {[%emt 0:01:49]} 31. Ke2 {[%emt 0:02:22]} Ke7 {[%emt 0:00:51]} 32. g4 {[%emt 0:01:40]} Kf7 {[%emt 0:08:29]} 33. h4 {[%emt 0:01:37]} Be7 {[%emt 0:01:07]} 34. Nd2 {[%emt 0:01:44]} Rb7 {[%emt 0:00:53]} 35. Nf1 {[%emt 0:01:30]} Nb8 {[%emt 0:01:29]} 36. R6a3 {[%emt 0:00:40]} Nd7 {[%emt 0:01:38]} 37. Rd1 {[%emt 0:00:20]} Rbc7 {[%emt 0:00:27]} 38. Rd3 {[%emt 0:00:48]} Nf8 {[%emt 0:00:32]} 39. Ng3 {[%emt 0:00:53]} g6 {[%emt 0:00:16]} 40. Kd2 {[%emt 0:01:31]} Ne6 {[%emt 0:00:30]} 41. Ra5 {[%emt 0:06:08]} Rb7 {[%emt 0:00:13]} 42. Ne2 {[%emt 0:01:56]} Rc6 {[%emt 0:02:26]} 43. Ng3 {[%emt 0:04:39]} Bd8 {[%emt 0:08:08]} 44. Ra8 {[%emt 0:03:28]} Ke7 {[%emt 0:01:18]} 45. h5 {[%emt 0:01:16]} Bb6 {[%emt 0:08:05]} 46. Ne2 {[%emt 0:05:36]} Bxe3+ {[%emt 0:02:18]} 47. Rxe3 {[%emt 0:00:29]} Kf7 {[%emt 0:03:47]} 48. Rd3 {[%emt 0:03:58]} Rd7 {[%emt 0:00:41]} 49. Rb8 {[%emt 0:01:04]} Nc7 {[%emt 0:00:05]} 50. hxg6+ {[%emt 0:01:33]} hxg6 {[%emt 0:00:18]} 51. Rh3 {[%emt 0:00:30]} d5 {[%emt 0:03:11]} 52. Rh7+ {[%emt 0:01:00]} Ke6 {[%emt 0:00:04]} 53. Rxd7 {[%emt 0:00:58]} Kxd7 {[%emt 0:00:03]} 54. exd5 {[%emt 0:01:16]} Rd6 {[%emt 0:00:04]} 55. Kc2 {[%emt 0:01:02]} Rxd5 {[%emt 0:02:09]} 56. Rg8 {[%emt 0:00:22]} g5 {[%emt 0:00:08]} 57. Rg7+ {[%emt 0:01:09]} Kd8 {[%emt 0:04:24]} 58. Ng3 {[%emt 0:00:52]} Rd6 {[%emt 0:00:31]} 59. Ne4 {[%emt 0:00:55]} Rc6 {[%emt 0:00:07]} 60. Rf7 {[%emt 0:01:09]} Nd5 {[%emt 0:00:08]} 61. Nc5 {[%emt 0:00:39]} Ke8 {[%emt 0:00:42]} 62. Rb7 {[%emt 0:00:13]} Rb6 {[%emt 0:01:03]} 63. Rd7 {[%emt 0:00:37]} Ne7 {[%emt 0:00:40]} 64. Ra7 {[%emt 0:00:11]} Kf7 {[%emt 0:01:44]} 65. Nd7 {[%emt 0:00:27]} Rd6 {[%emt 0:00:19]} 66. Rb7 {[%emt 0:00:21]} Ra6 {[%emt 0:00:37]} 67. Kb2 {[%emt 0:00:35]} Rd6 {[%emt 0:00:04]} 68. Kc2 {[%emt 0:01:04]} Ra6 {[%emt 0:00:22]} 69. Kb3 {[%emt 0:00:56]} Ra1 {[%emt 0:00:36]} 70. Rb6 {[%emt 0:00:27]} Nd5 {[%emt 0:01:04]} 71. Rxb5 {[%emt 0:00:24]} Nf4 {[%emt 0:00:28]} 72. Rb6 {[%emt 0:00:40]} Rf1 {[%emt 0:00:26]} 73. Nxf6 {[%emt 0:00:20]} Rxf2 {[%emt 0:00:04]} 74. Ne4 {[%emt 0:00:11]} Rg2 {[%emt 0:00:17]} 75. Nxg5+ {[%emt 0:00:39]} Ke7 {[%emt 0:00:55]} 76. Rb5 {[%emt 0:00:49]} Rxg4 {[%emt 0:00:25]} 77. Nf3 {[%emt 0:00:37]} Rg3 {[%emt 0:00:49]} 78. Nxe5 {[%emt 0:00:27]} Ne2 {[%emt 0:00:11]} 79. Rc5 {[%emt 0:00:11]} Ke6 {[%emt 0:00:16]} 80. Nc6 {[%emt 0:00:30]} Kd6 {[%emt 0:00:08]} 81. Na5 {[%emt 0:00:16]} Rh3 {[%emt 0:00:50]} 82. Rc6+ {[%emt 0:00:30]} Kd7 {[%emt 0:00:14]} 83. Rc5 {[%emt 0:00:09]} Kd6 {[%emt 0:00:06]} 84. Nc4+ {[%emt 0:00:20]} Kd7 {[%emt 0:00:34]} 85. Nb2 {[%emt 0:00:20]} Kd6 {[%emt 0:00:09]} 86. Rc8 {[%emt 0:00:37]} Kd7 {[%emt 0:00:12]} 87. Rc4 {[%emt 0:00:26]} Rf3 {[%emt 0:01:36]} 88. Na4 {[%emt 0:01:08]} Kd6 {[%emt 0:00:42]} 89. b5 {[%emt 0:00:34]} Rf5 {[%emt 0:00:28]} 90. Kb4 {[%emt 0:00:33]} Nf4 {[%emt 0:00:12]} 91. Rc6+ {[%emt 0:00:28]} Ke7 {[%emt 0:00:24]} 92. Ka5 {[%emt 0:00:42]} Ne6 {[%emt 0:01:12]} 93. Nb2 {[%emt 0:00:53]} Kd7 {[%emt 0:00:29]} 94. Na4 {[%emt 0:00:24]} Ke7 {[%emt 0:00:51]} 95. c4 {[%emt 0:00:33]} Nd4 {[%emt 0:00:23]} 96. Rc8 {[%emt 0:00:09]} Rf1 {[%emt 0:00:38]} 97. b6 {[%emt 0:00:39]} Rb1 {[%emt 0:00:15]} 98. c5 {[%emt 0:00:41]} Kd7 {[%emt 0:00:41]} 99. Rc7+ {[%emt 0:00:11]} Kd8 {[%emt 0:00:10]} 100. c6 {[%emt 0:00:31]} Ne6 {[%emt 0:00:43]} 101. Rd7+ {[%emt 0:00:05]} Kc8 {[%emt 0:00:09]} 102. Re7 {[%emt 0:00:32]} Nd8 {[%emt 0:00:59]} 103. Re8 {[%emt 0:00:06]} Rb3 {[%emt 0:00:18]} 104. Ka6 {[%emt 0:01:01] normal} 1-0

[Event "-chT Youth Countries 2019"]
[Site "Wuerzburg"]
[Date "2019.10.04"]
[Round "5.2"]
[White "Sieber, Fiona"]
[Black "Arndt, Magnus"]
[Result "0-1"]
[ECO "C88"]
[WhiteElo "2252"]
[BlackElo "2312"]
[Annotator "NA"]
[PlyCount "108"]
[EventDate "2019.10.02"]
[EventType "team-tourn"]
[EventRounds "7"]
[EventCountry "GER"]
[SourceTitle "playchess.com"]
[Source "ChessBase"]
[SourceQuality "1"]
[WhiteTeam "Sachsen-Anhalt"]
[BlackTeam "Schleswig-Holstein"]
[TimeControl "40/5400+30:1800+30"]

1. e4 {[%emt 0:00:00]} e5 {[%emt 0:00:00]} 2. Nf3 {[%emt 0:00:00]} Nc6 {[%emt 0:00:00]} 3. Bb5 {[%emt 0:00:00]} a6 {[%emt 0:00:00]} 4. Ba4 {[%emt 0:00:00]} Nf6 {[%emt 0:00:00]} 5. O-O {[%emt 0:00:00]} Be7 {[%emt 0:00:00]} 6. Re1 {[%emt 0:00:00]} b5 {[%emt 0:00:02]} 7. Bb3 {[%emt 0:00:00]} O-O {[%emt 0:00:07]} 8. a4 {[%emt 0:00:28]} b4 {[%emt 0:03:02]} 9. d3 {[%emt 0:04:20]} d6 {[%emt 0:02:50]} 10. a5 {[%emt 0:04:12]} h6 {[%emt 0:05:29]} 11. Nbd2 {[%emt 0:02:36]} Be6 {[%emt 0:03:02]} 12. Bxe6 {[%emt 0:06:08]} fxe6 {[%emt 0:00:05]} 13. c3 {[%emt 0:02:51]} Rb8 {[%emt 0:10:56]} 14. Nc4 {[%emt 0:09:26]} bxc3 {[%emt 0:28:37]} 15. bxc3 {[%emt 0:00:08]} Nd7 {[%emt 0:00:30]} 16. Ba3 {[%emt 0:17:39]} Rb5 {[%emt 0:09:15]} 17. Qc2 {[%emt 0:06:33]} Qa8 {[%emt 0:09:28]} 18. Qa2 {[%emt 0:04:44]} Qe8 {[%emt 0:10:01]} 19. Rab1 {[%emt 0:01:53]} Qg6 {[%emt 0:03:28]} 20. Kh1 {[%emt 0:04:01]} Rfb8 {[%emt 0:02:19]} 21. Rxb5 {[%emt 0:03:08]} axb5 {[%emt 0:02:23]} 22. Ne3 {[%emt 0:00:58]} Nxa5 {[%emt 0:00:40]} 23. Bxd6 {[%emt 0:05:41]} cxd6 {[%emt 0:00:57]} 24. Qxa5 {[%emt 0:00:06]} Nc5 {[%emt 0:00:34]} 25. Rd1 {[%emt 0:06:09]} Qe8 {[%emt 0:01:05]} 26. Qb4 {[%emt 0:03:11]} Ra8 {[%emt 0:00:58]} 27. Kg1 {[%emt 0:00:53]} Ra4 {[%emt 0:01:06]} 28. Qb1 {[%emt 0:00:26]} Qc6 {[%emt 0:00:42]} 29. Nc2 {[%emt 0:02:16]} Kh8 {[%emt 0:00:54]} 30. Nb4 {[%emt 0:02:06]} Qa8 {[%emt 0:00:16]} 31. Re1 {[%emt 0:00:41]} Ra3 {[%emt 0:00:55]} 32. Qc2 {[%emt 0:04:34]} Qa4 {[%emt 0:01:22]} 33. Qd2 {[%emt 0:02:33]} Ra1 {[%emt 0:01:11]} 34. Kf1 {[%emt 0:02:52]} Kg8 {[%emt 0:00:56]} 35. h4 {[%emt 0:00:58]} Qa3 {[%emt 0:01:12]} 36. Rxa1 {[%emt 0:03:09]} Qxa1+ {[%emt 0:01:57]} 37. Qe1 {[%emt 0:00:38]} Qb2 {[%emt 0:00:25]} 38. g3 {[%emt 0:01:38]} Na4 {[%emt 0:00:29]} 39. c4 {[%emt 0:00:49]} bxc4 {[%emt 0:00:23]} 40. dxc4 {[%emt 0:00:05]} Qb3 {[%emt 0:00:44]} 41. Kg2 {[%emt 0:10:29]} Qxc4 {[%emt 0:01:36]} 42. Qb1 {[%emt 0:03:34]} Nc3 {[%emt 0:07:06]} 43. Nd2 {[%emt 0:00:50]} Qd4 {[%emt 0:04:43]} 44. Qb3 {[%emt 0:00:46]} Nxe4 {[%emt 0:11:28]} 45. Qxe6+ {[%emt 0:00:24]} Kf8 {[%emt 0:01:44]} 46. Qf5+ {[%emt 0:04:31]} Nf6 {[%emt 0:00:13]} 47. Qc8+ {[%emt 0:00:50]} Kf7 {[%emt 0:00:17]} 48. Nc4 {[%emt 0:00:47]} Qe4+ {[%emt 0:01:34]} 49. f3 {[%emt 0:01:30]} Qe2+ {[%emt 0:00:46]} 50. Kh3 {[%emt 0:00:08]} Qf1+ {[%emt 0:00:25]} 51. Kh2 {[%emt 0:00:03]} Qf2+ {[%emt 0:00:04]} 52. Kh3 {[%emt 0:00:16]} Qxf3 {[%emt 0:01:00]} 53. Nxd6+ {[%emt 0:05:13]} Bxd6 {[%emt 0:00:34]} 54. Qc4+ {[%emt 0:00:09]} Kg6 {[%emt 0:00:28] normal} 0-1

[Event "-chT Youth Countries 2019"]
[Site "Wuerzburg"]
[Date "2019.10.04"]
[Round "5.2"]
[White "Schneider, Jana"]
[Black "Nguyen, Alex Dac-Vuong"]
[Result "0-1"]
[ECO "B42"]
[WhiteElo "2240"]
[BlackElo "2128"]
[Annotator "NA"]
[PlyCount "110"]
[EventDate "2019.10.02"]
[EventType "team-tourn"]
[EventRounds "7"]
[EventCountry "GER"]
[SourceTitle "playchess.com"]
[Source "ChessBase"]
[SourceQuality "1"]
[WhiteTeam "Bayern 1"]
[BlackTeam "Sachsen"]
[TimeControl "40/5400+30:1800+30"]

1. e4 {[%emt 0:00:00]} c5 {[%emt 0:00:00]} 2. Nf3 {[%emt 0:00:00]} e6 {[%emt 0:00:00]} 3. d4 {[%emt 0:00:00]} cxd4 {[%emt 0:00:00]} 4. Nxd4 {[%emt 0:00:00]} a6 {[%emt 0:00:00]} 5. Bd3 {[%emt 0:00:00]} Nf6 {[%emt 0:00:00]} 6. O-O {[%emt 0:01:08]} Qc7 {[%emt 0:00:00]} 7. Qe2 {[%emt 0:00:21]} d6 {[%emt 0:00:04]} 8. c4 {[%emt 0:00:13]} g6 {[%emt 0:00:05]} 9. b3 {[%emt 0:01:42]} Bg7 {[%emt 0:00:20]} 10. Bb2 {[%emt 0:00:11]} O-O {[%emt 0:00:22]} 11. Nc3 {[%emt 0:01:45]} Nc6 {[%emt 0:10:36]} 12. Nxc6 {[%emt 0:00:52]} bxc6 {[%emt 0:01:05]} 13. Rfe1 {[%emt 0:06:23]} e5 {[%emt 0:06:50]} 14. Rad1 {[%emt 0:07:27]} Bg4 {[%emt 0:04:02]} 15. f3 {[%emt 0:00:12]} Be6 {[%emt 0:00:06]} 16. Na4 {[%emt 0:08:34]} c5 {[%emt 0:08:15]} 17. Qd2 {[%emt 0:05:43]} h5 {[%emt 0:03:02]} 18. Bf1 {[%emt 0:04:19]} Rfd8 {[%emt 0:00:19]} 19. Bc3 {[%emt 0:03:59]} a5 {[%emt 0:00:31]} 20. Bb2 {[%emt 0:00:19]} Kh7 {[%emt 0:12:16]} 21. Nc3 {[%emt 0:00:48]} Qb6 {[%emt 0:00:23]} 22. Qc2 {[%emt 0:02:43]} Ng8 {[%emt 0:03:00]} 23. Nb5 {[%emt 0:03:46]} Ne7 {[%emt 0:02:22]} 24. a4 {[%emt 0:19:22]} Nc6 {[%emt 0:06:12]} 25. Bc1 {[%emt 0:02:25]} Nd4 {[%emt 0:00:21]} 26. Qc3 {[%emt 0:03:01]} Rf8 {[%emt 0:04:24]} 27. Rd3 {[%emt 0:03:30]} f5 {[%emt 0:02:31]} 28. Bg5 {[%emt 0:01:58]} Rf7 {[%emt 0:00:26]} 29. Qd2 {[%emt 0:03:19]} fxe4 {[%emt 0:02:27]} 30. fxe4 {[%emt 0:00:35]} Raf8 {[%emt 0:00:13]} 31. Rg3 {[%emt 0:03:40]} Bg4 {[%emt 0:03:54]} 32. Rge3 {[%emt 0:07:48]} Qc6 {[%emt 0:08:06]} 33. h3 {[%emt 0:02:29]} Be6 {[%emt 0:00:43]} 34. Rd1 {[%emt 0:02:16]} Qb6 {[%emt 0:02:18]} 35. Rg3 {[%emt 0:01:04]} Bd7 {[%emt 0:02:17]} 36. Ra1 {[%emt 0:01:44]} Bc6 {[%emt 0:02:40]} 37. Qd3 {[%emt 0:00:52]} Qb8 {[%emt 0:01:17]} 38. Re1 {[%emt 0:00:35]} Bf6 {[%emt 0:02:02]} 39. Bxf6 {[%emt 0:02:09]} Rxf6 {[%emt 0:00:07]} 40. Be2 {[%emt 0:01:19]} Rf4 {[%emt 0:00:45]} 41. Bd1 {[%emt 0:05:26]} Qd8 {[%emt 0:00:41]} 42. Nxd4 {[%emt 0:04:12]} cxd4 {[%emt 0:00:40]} 43. Rf3 {[%emt 0:01:03]} Qh4 {[%emt 0:05:10]} 44. Qd2 {[%emt 0:02:43]} Rxf3 {[%emt 0:00:26]} 45. Bxf3 {[%emt 0:00:13]} g5 {[%emt 0:01:26]} 46. Qd1 {[%emt 0:09:42]} Kg6 {[%emt 0:00:57]} 47. Rf1 {[%emt 0:00:51]} Rf4 {[%emt 0:00:39]} 48. c5 {[%emt 0:03:38]} g4 {[%emt 0:01:11]} 49. Be2 {[%emt 0:01:51]} gxh3 {[%emt 0:00:54]} 50. Rxf4 {[%emt 0:00:49]} Qxf4 {[%emt 0:00:53]} 51. Bxh5+ {[%emt 0:01:49]} Kg5 {[%emt 0:00:23]} 52. cxd6 {[%emt 0:01:13]} Qxe4 {[%emt 0:02:17]} 53. Bf3 {[%emt 0:01:03]} Qe3+ {[%emt 0:00:14]} 54. Kh2 {[%emt 0:00:25]} e4 {[%emt 0:02:59] normal} 55. Bh5 {[%emt 0:00:31]} Bd7 {[%emt 0:03:06] normal} 0-1